[Event "European Women Rapid-ch 2023"]
[Site "Monaco"]
[Date "2024.01.14"]
[Round "9.24"]
[White "Radeva, Viktoria"]
[Black "Guillo Longares, Cecilia"]
[Result "1-0"]
[ECO "B38"]
[WhiteElo "2325"]
[BlackElo "2096"]
[Annotator "ChessBase"]
[PlyCount "79"]
[EventDate "2023.12.19"]
[EventType "swiss"]
[EventCountry "MNC"]
[SourceTitle "playchess.com"]
[Source "ChessBase"]
[SourceQuality "1"]
[TimeControl "900+10"]

1. e4 {[%emt 0:00:01]} c5 {[%emt 0:00:01]} 2. Nf3 {[%emt 0:00:07]} Nc6 {[%emt 0:00:01]} 3. d4 {[%emt 0:00:03]} cxd4 {[%emt 0:00:02]} 4. Nxd4 {[%emt 0:00:01]} g6 {[%emt 0:00:02]} 5. c4 {[%emt 0:00:02]} Bg7 {[%emt 0:00:02]} 6. Be3 {[%emt 0:00:00]} Qb6 {[%emt 0:00:01]} 7. Nb3 {[%emt 0:00:12]} Qd8 {[%emt 0:00:02]} 8. Nc3 {[%emt 0:00:08]} Bxc3+ {[%emt 0:00:02]} 9. bxc3 {[%emt 0:00:02]} Nf6 {[%emt 0:00:01]} 10. Bd3 {[%emt 0:00:31]} d6 {[%emt 0:00:10]} 11. c5 {[%emt 0:00:56]} d5 {[%emt 0:00:07]} 12. exd5 {[%emt 0:01:01]} Nxd5 {[%emt 0:00:08]} 13. Bd2 {[%emt 0:00:47]} e5 {[%emt 0:01:31]} 14. O-O {[%emt 0:00:24]} O-O {[%emt 0:00:19]} 15. Qf3 {[%emt 0:00:52]} Nf4 {[%emt 0:01:12]} 16. Bc2 {[%emt 0:00:49]} Qg5 {[%emt 0:01:59]} 17. g3 {[%emt 0:01:36]} Nh3+ {[%emt 0:00:02]} 18. Kh1 {[%emt 0:01:25]} Bg4 {[%emt 0:01:49]} 19. Qg2 {[%emt 0:00:48]} Qf6 {[%emt 0:00:09]} 20. f3 {[%emt 0:00:41]} Be6 {[%emt 0:00:13]} 21. Be3 {[%emt 0:01:10]} Rad8 {[%emt 0:02:16]} 22. Nd2 {[%emt 0:00:57]} Na5 {[%emt 0:02:27]} 23. Ne4 {[%emt 0:01:37]} Qe7 {[%emt 0:00:02]} 24. Bh6 {[%emt 0:01:37]} Nc4 {[%emt 0:01:25]} 25. Bb3 {[%emt 0:00:25]} Na5 {[%emt 0:01:58]} 26. Bxe6 {[%emt 0:00:20]} Qxe6 {[%emt 0:00:01]} 27. Bxf8 {[%emt 0:00:06]} Rxf8 {[%emt 0:00:08]} 28. Rad1 {[%emt 0:00:30]} Nc4 {[%emt 0:00:19]} 29. Rfe1 {[%emt 0:00:31]} h6 {[%emt 0:02:46]} 30. Nd6 {[%emt 0:00:31]} Nxd6 31. cxd6 {[%emt 0:00:02]} Rd8 {[%emt 0:00:53]} 32. Rd2 {[%emt 0:00:23]} Qf5 {[%emt 0:00:10]} 33. c4 {[%emt 0:01:02]} b6 {[%emt 0:00:09]} 34. Red1 {[%emt 0:00:10]} Ng5 {[%emt 0:00:03]} 35. Rd3 {[%emt 0:00:17]} Ne6 {[%emt 0:00:15]} 36. Rd5 {[%emt 0:00:24]} Qf6 {[%emt 0:00:12]} 37. d7 {[%emt 0:00:06]} Nd4 {[%emt 0:00:05]} 38. f4 {[%emt 0:00:05]} Nc6 {[%emt 0:00:11]} 39. Rd6 {[%emt 0:00:09]} Qe7 {[%emt 0:00:15]} 40. Qxc6 {[%emt 0:00:07]} 1-0

[Event "European Women Rapid-ch 2023"]
[Site "Monaco"]
[Date "2024.01.14"]
[Round "9.25"]
[White "Schulze, Lara"]
[Black "Cornileau, Juliette"]
[Result "1-0"]
[ECO "B51"]
[WhiteElo "2285"]
[BlackElo "2007"]
[Annotator "ChessBase"]
[PlyCount "28"]
[EventDate "2023.12.19"]
[EventType "swiss"]
[EventCountry "MNC"]
[SourceTitle "playchess.com"]
[Source "ChessBase"]
[SourceQuality "1"]
[TimeControl "900+10"]

1. e4 {[%emt 0:00:01]} c5 {[%emt 0:00:01]} 2. Nf3 {[%emt 0:00:02]} d6 {[%emt 0:00:02]} 3. Bb5+ {[%emt 0:00:02]} Nd7 {[%emt 0:00:01]} 4. c4 {[%emt 0:00:03]} Ngf6 {[%emt 0:00:40]} 5. Nc3 {[%emt 0:00:02]} a6 {[%emt 0:00:30]} 6. Ba4 {[%emt 0:00:03]} e5 {[%emt 0:00:02]} 7. d3 {[%emt 0:00:19]} Be7 {[%emt 0:00:01]} 8. a3 {[%emt 0:01:48]} O-O {[%emt 0:00:33]} 9. b4 {[%emt 0:00:00]} cxb4 {[%emt 0:01:30]} 10. axb4 {[%emt 0:00:00]} Nb6 {[%emt 0:01:58]} 11. Bb3 {[%emt 0:00:04]} d5 {[%emt 0:01:13]} 12. c5 {[%emt 0:01:17]} dxe4 {[%emt 0:00:18]} 13. dxe4 {[%emt 0:00:17]} Qd5 {[%emt 0:00:52]} 14. Qd2 Qxd2+ {[%emt 0:00:00]} 1-0

[Event "European Women Rapid-ch 2023"]
[Site "Monaco"]
[Date "2024.01.14"]
[Round "9.26"]
[White "Gaprindashvili, Nona"]
[Black "Froewis, Annika"]
[Result "1-0"]
[ECO "D27"]
[WhiteElo "2243"]
[BlackElo "2133"]
[Annotator "TA"]
[PlyCount "49"]
[EventDate "2023.12.19"]
[EventType "swiss"]
[EventCountry "MNC"]
[SourceTitle "playchess.com"]
[Source "ChessBase"]
[SourceQuality "1"]
[TimeControl "900+10"]

{[%evp 16,49,6,-12,0,-6,0,-33,-45,-41,0,0,-4,-8,-11,0,0,0,0,-32,-25,-52,-61,-81,-74,-79,-20,-31,-21,-23,9,0,29990,1801,29991,29992]} 1. d4 {[%emt 0:00:02]} d5 {[%emt 0:00:01]} 2. c4 {[%emt 0:00:01]} e6 {[%emt 0:00:01]} 3. Nf3 {[%emt 0:00:05]} Nf6 {[%emt 0:00:01]} 4. Nc3 {[%emt 0:00:03]} dxc4 {[%emt 0:00:02]} 5. e3 {[%emt 0:00:06]} a6 {[%emt 0:00:17]} 6. Bxc4 {[%emt 0:00:03]} b5 {[%emt 0:00:02]} 7. Bb3 {[%emt 0:00:02]} Bb7 {[%emt 0:00:01]} 8. O-O {[%emt 0:00:03]} c5 {[%emt 0:00:35]} 9. Qe2 {[%emt 0:00:07]} Qc7 {[%emt 0:00:38]} 10. dxc5 {[%emt 0:00:31]} Bxc5 {[%emt 0:00:04]} 11. Bd2 {[%emt 0:00:01]} O-O {[%emt 0:00:22] Black is slightly better.} (11... Nbd7 {seems wilder.} 12. Nd4 Rc8 13. a3 O-O) 12. Rac1 {[%emt 0:00:00]} Qb6 {[%emt 0:01:01]} (12... Nbd7 {is more complex.} 13. Nd4 Rfd8 14. Rfd1 Rac8) 13. e4 {[%emt 0:00:22]} Nc6 {[%emt 0:02:27]} 14. e5 {[%emt 0:00:17]} Nd7 {[%emt 0:00:24]} 15. Bf4 {[%emt 0:00:11]} Nd4 {[%emt 0:00:25]} 16. Nxd4 {[%emt 0:00:24]} Bxd4 {[%emt 0:00:01]} 17. Bc2 {[%emt 0:01:05]} (17. Rfd1 $5) 17... Rfd8 {[%emt 0:02:39]} 18. Bb1 {[%emt 0:00:26]} Rac8 {[%emt 0:00:27]} 19. Rcd1 {[%emt 0:01:03][%cal Ob1h7]} b4 {[%emt 0:03:47]} 20. Ne4 {[%emt 0:07:24]} Bxe5 {[%emt 0:00:21]} ({Black should try} 20... Nxe5 $17 21. Bxe5 Bxe5) 21. Bxe5 $11 {[%emt 0:05:34]} Nxe5 {[%emt 0:00:02]} 22. Ng5 $1 {[%emt 0:00:07][%csl LRe5,LRh7]} Ng6 {[%emt 0:04:06]} 23. Qh5 {[%emt 0:00:10]} f5 $2 {[%emt 0:00:03][%mdl 8192] [#]} ({But not} 23... h6 24. Nxf7 Kxf7 25. Qxg6+ Kf8 26. Rde1 $14) (23... Rxd1 $11 24. Rxd1 (24. Qxh7+ Kf8 $11) 24... h6 25. Nxf7 Kxf7) 24. Qxh7+ {[%emt 0:00:06]} (24. Nxh7 $2 {loses.} Nf4 25. Rxd8+ Rxd8 $19) 24... Kf8 {[%emt 0:00:02]} 25. Qxg6 {[%emt 0:00:05] Weighted Error Value: White=0.10 (very precise) /Black=0.44.  Loses game:     	---       	Black=1      Mistake:       	---       	Black=1      Inaccurate:     	White=3     	Black=3      OK:         	White=7     	Black=5      Best:        	White=1     	---        Strong:       	White=1     	---} 1-0

[Event "European Women Rapid-ch 2023"]
[Site "Monaco"]
[Date "2024.01.14"]
[Round "9.27"]
[White "Uta, Adeline-Ramona"]
[Black "Reizniece-Ozola, Dana"]
[Result "0-1"]
[ECO "B06"]
[WhiteElo "2036"]
[BlackElo "2278"]
[Annotator "ChessBase"]
[PlyCount "58"]
[EventDate "2023.12.19"]
[EventType "swiss"]
[EventCountry "MNC"]
[SourceTitle "playchess.com"]
[Source "ChessBase"]
[SourceQuality "1"]
[TimeControl "900+10"]

1. e4 {[%emt 0:02:05]} d6 {[%emt 0:00:01]} 2. d4 {[%emt 0:00:16]} g6 {[%emt 0:00:02]} 3. Nc3 {[%emt 0:00:02]} Bg7 {[%emt 0:00:01]} 4. f4 {[%emt 0:00:02]} a6 {[%emt 0:00:02]} 5. Nf3 {[%emt 0:00:02]} b5 {[%emt 0:00:01]} 6. a3 {[%emt 0:00:31]} Nd7 {[%emt 0:00:38]} 7. Bd3 {[%emt 0:00:20]} c5 {[%emt 0:01:13]} 8. d5 {[%emt 0:00:21]} c4 {[%emt 0:00:23]} 9. Be2 {[%emt 0:00:21]} Qb6 {[%emt 0:00:04]} 10. Qd2 {[%emt 0:05:35]} Ngf6 {[%emt 0:00:13]} 11. Qe3 {[%emt 0:00:24]} Nc5 {[%emt 0:00:16]} 12. h3 {[%emt 0:00:26]} Bb7 {[%emt 0:00:49]} 13. O-O {[%emt 0:00:30]} O-O {[%emt 0:00:24]} 14. Qf2 {[%emt 0:00:31]} Qc7 {[%emt 0:02:24]} 15. Qe3 {[%emt 0:01:24]} e6 {[%emt 0:00:19]} 16. dxe6 {[%emt 0:01:40]} Nfxe4 {[%emt 0:00:45]} 17. exf7+ {[%emt 0:00:10]} Rxf7 {[%emt 0:00:11]} 18. Nxe4 {[%emt 0:00:20]} Nxe4 {[%emt 0:00:03]} 19. Kh2 {[%emt 0:02:12]} Re7 {[%emt 0:00:46]} 20. Re1 {[%emt 0:00:48]} Rae8 {[%emt 0:00:13]} 21. Qg1 {[%emt 0:00:22]} Nc3 {[%emt 0:00:46]} 22. Bxc4+ {[%emt 0:00:12]} Qxc4 {[%emt 0:00:21]} 23. Rxe7 {[%emt 0:00:03]} Rxe7 {[%emt 0:00:02]} 24. bxc3 {[%emt 0:00:06]} Bxf3 {[%emt 0:01:04]} 25. gxf3 {[%emt 0:00:09]} Re2+ {[%emt 0:00:02]} 26. Kg3 {[%emt 0:00:07]} Bxc3 {[%emt 0:00:07]} 27. Rb1 {[%emt 0:00:08]} Be1+ {[%emt 0:00:02]} 28. Kg4 {[%emt 0:00:05]} Qe6+ {[%emt 0:00:03]} 29. Kg5 {[%emt 0:00:07]} Qf5+ {[%emt 0:00:03]} 0-1

[Event "European Women Rapid-ch 2023"]
[Site "Monaco"]
[Date "2024.01.14"]
[Round "10.1"]
[White "Wagner, Dinara"]
[Black "Kosteniuk, Alexandra"]
[Result "1/2-1/2"]
[ECO "E11"]
[WhiteElo "2459"]
[BlackElo "2501"]
[Annotator "RC"]
[PlyCount "37"]
[EventDate "2023.12.19"]
[EventType "swiss"]
[EventCountry "MNC"]
[SourceTitle "playchess.com"]
[Source "ChessBase"]
[SourceQuality "1"]
[TimeControl "900+10"]

1. d4 {[%emt 0:00:02]} Nf6 {[%emt 0:00:01]} 2. c4 {[%emt 0:00:02]} e6 {[%emt 0:00:01]} 3. Nf3 {[%emt 0:00:02]} Bb4+ {[%emt 0:00:01]} 4. Bd2 {[%emt 0:00:01]} Qe7 {[%emt 0:00:02]} 5. g3 {[%emt 0:00:05]} Nc6 {[%emt 0:00:06]} 6. a3 {[%emt 0:00:02]} Bxd2+ {[%emt 0:00:05]} 7. Qxd2 {[%emt 0:00:02]} d5 {[%emt 0:00:06]} 8. Bg2 {[%emt 0:00:02]} O-O {[%emt 0:00:07]} 9. Qc3 {[%emt 0:00:29]} dxc4 {[%emt 0:01:32]} 10. Nbd2 {[%emt 0:00:04]} Rd8 {[%emt 0:01:17]} 11. Nxc4 {[%emt 0:01:51]} e5 {[%emt 0:00:55]} 12. dxe5 {[%emt 0:01:08]} Nd5 {[%emt 0:00:01]} 13. Qc2 {[%emt 0:01:16]} Nb6 {[%emt 0:00:30]} 14. Rc1 {[%emt 0:01:02]} Bg4 {[%emt 0:01:29]} 15. O-O {[%emt 0:04:03]} Bxf3 {[%emt 0:00:02]} 16. Bxf3 {[%emt 0:00:34]} Nd4 {[%emt 0:01:49]} 17. Qc3 {[%emt 0:01:53]} Nxc4 {[%emt 0:00:10]} 18. Qxc4 {[%emt 0:00:02]} Qxe5 {[%emt 0:00:16]} 19. Qxc7 {[%emt 0:01:15]} 1/2-1/2

[Event "European Women Rapid-ch 2023"]
[Site "Monaco"]
[Date "2024.01.14"]
[Round "10.2"]
[White "Schippke, Manon"]
[Black "Paehtz, Elisabeth"]
[Result "0-1"]
[ECO "B90"]
[WhiteElo "2162"]
[BlackElo "2461"]
[Annotator "RC"]
[PlyCount "82"]
[EventDate "2023.12.19"]
[EventType "swiss"]
[EventCountry "MNC"]
[SourceTitle "playchess.com"]
[Source "ChessBase"]
[SourceQuality "1"]
[TimeControl "900+10"]

1. e4 {[%emt 0:00:02]} c5 {[%emt 0:00:00]} 2. Nf3 {[%emt 0:00:01]} d6 {[%emt 0:00:01]} 3. d4 {[%emt 0:00:01]} cxd4 {[%emt 0:00:01]} 4. Nxd4 {[%emt 0:00:02]} Nf6 {[%emt 0:00:01]} 5. Nc3 {[%emt 0:00:01]} a6 {[%emt 0:00:01]} 6. Rg1 {[%emt 0:00:11]} e5 {[%emt 0:00:10]} 7. Nb3 {[%emt 0:00:06]} h5 {[%emt 0:00:05]} 8. Bg5 {[%emt 0:00:02]} Be6 {[%emt 0:00:03]} 9. Qd2 {[%emt 0:00:11]} Nbd7 {[%emt 0:00:02]} 10. O-O-O {[%emt 0:00:15]} b5 {[%emt 0:00:02]} 11. f4 {[%emt 0:03:00]} Be7 {[%emt 0:00:01]} 12. Bd3 {[%emt 0:00:45]} b4 {[%emt 0:01:45]} 13. Na4 {[%emt 0:00:33]} exf4 {[%emt 0:03:17]} 14. Bxf4 {[%emt 0:00:03]} a5 {[%emt 0:00:21]} 15. Nd4 {[%emt 0:01:52]} Qc7 {[%emt 0:01:44]} 16. Nxe6 {[%emt 0:02:41]} fxe6 {[%emt 0:00:01]} 17. e5 {[%emt 0:01:18]} Nxe5 {[%emt 0:00:30]} 18. Bxe5 {[%emt 0:00:01]} dxe5 {[%emt 0:00:01]} 19. Bg6+ {[%emt 0:00:26]} Kf8 {[%emt 0:00:01]} 20. Qe2 {[%emt 0:00:39]} Rc8 {[%emt 0:01:06]} 21. Rgf1 {[%emt 0:00:39]} Rh6 {[%emt 0:00:46]} 22. Bd3 {[%emt 0:00:16]} Kg8 {[%emt 0:00:20]} 23. b3 {[%emt 0:00:32]} Kh8 {[%emt 0:03:00]} 24. Ba6 {[%emt 0:00:59]} Rb8 {[%emt 0:00:29]} 25. Bc4 {[%emt 0:00:16]} e4 {[%emt 0:00:06]} 26. Kb1 {[%emt 0:01:24]} Qe5 {[%emt 0:00:07]} 27. Rfe1 {[%emt 0:00:01]} Ng4 {[%emt 0:01:14]} 28. h3 {[%emt 0:00:12]} Nf6 {[%emt 0:00:34]} 29. g4 {[%emt 0:00:17]} Rg6 {[%emt 0:00:43]} 30. gxh5 {[%emt 0:00:25]} Rg3 {[%emt 0:00:24]} 31. h4 {[%emt 0:00:35]} e3 {[%emt 0:00:47]} 32. Rd3 {[%emt 0:00:46]} Ng4 {[%emt 0:00:11]} 33. c3 {[%emt 0:00:52]} Bf6 {[%emt 0:00:01]} 34. Rd4 {[%emt 0:00:24]} Nh6 {[%emt 0:00:28]} 35. Qd3 {[%emt 0:00:24]} bxc3 {[%emt 0:00:49]} 36. Re4 {[%emt 0:00:01]} c2+ {[%emt 0:00:01]} 37. Kxc2 {[%emt 0:00:12]} Rg2+ {[%emt 0:00:00]} 38. Kc1 {[%emt 0:00:05]} Qh2 {[%emt 0:00:47]} 39. Re2 {[%emt 0:00:25]} Qh1+ {[%emt 0:00:23]} 40. Kc2 {[%emt 0:00:03]} Rxe2+ {[%emt 0:00:02]} 41. Qxe2 {[%emt 0:00:01]} Qxe4+ {[%emt 0:00:01]} 0-1

[Event "European Women Rapid-ch 2023"]
[Site "Monaco"]
[Date "2024.01.14"]
[Round "10.3"]
[White "Stefanova, Antoaneta"]
[Black "Osmak, Yuliia"]
[Result "1-0"]
[ECO "E14"]
[WhiteElo "2431"]
[BlackElo "2450"]
[Annotator "RC"]
[PlyCount "68"]
[EventDate "2023.12.19"]
[EventType "swiss"]
[EventCountry "MNC"]
[SourceTitle "playchess.com"]
[Source "ChessBase"]
[SourceQuality "1"]
[TimeControl "900+10"]

1. d4 {[%emt 0:00:01]} Nf6 {[%emt 0:00:01]} 2. Nf3 {[%emt 0:00:00]} e6 {[%emt 0:00:00]} 3. e3 {[%emt 0:00:01]} d5 {[%emt 0:00:06]} 4. Bd3 {[%emt 0:00:01]} Be7 {[%emt 0:00:07]} 5. O-O {[%emt 0:00:03]} O-O {[%emt 0:00:03]} 6. b3 {[%emt 0:00:09]} b6 {[%emt 0:00:08]} 7. Bb2 {[%emt 0:00:13]} Bb7 {[%emt 0:00:10]} 8. Nbd2 {[%emt 0:00:02]} c5 {[%emt 0:00:50]} 9. dxc5 {[%emt 0:00:08]} bxc5 {[%emt 0:00:58]} 10. c4 {[%emt 0:00:02]} Nc6 {[%emt 0:00:14]} 11. cxd5 {[%emt 0:00:22]} exd5 {[%emt 0:00:24]} 12. Re1 {[%emt 0:00:18]} Nb4 {[%emt 0:00:26]} 13. Bb1 {[%emt 0:00:35]} a5 {[%emt 0:03:39]} 14. a3 {[%emt 0:00:28]} Nc6 {[%emt 0:00:41]} 15. Qc2 {[%emt 0:00:02]} g6 {[%emt 0:00:19]} 16. Ba2 {[%emt 0:00:23]} Qb6 {[%emt 0:00:41]} 17. Rac1 {[%emt 0:00:17]} Rac8 {[%emt 0:00:39]} 18. Ba1 {[%emt 0:02:15]} Rfd8 {[%emt 0:01:18]} 19. Qb2 {[%emt 0:00:14]} a4 {[%emt 0:00:06]} 20. bxa4 {[%emt 0:00:28]} Qxb2 {[%emt 0:00:04]} 21. Bxb2 {[%emt 0:00:01]} Ra8 {[%emt 0:00:37]} 22. Bxf6 {[%emt 0:00:30]} Bxf6 {[%emt 0:00:02]} 23. Rxc5 {[%emt 0:00:02]} d4 {[%emt 0:02:14]} 24. Rb1 {[%emt 0:01:46]} dxe3 {[%emt 0:01:26]} 25. fxe3 {[%emt 0:00:01]} Be7 {[%emt 0:01:07]} 26. Rc2 {[%emt 0:02:38]} Ra7 {[%emt 0:00:49]} 27. Rxb7 {[%emt 0:04:04]} Rxb7 {[%emt 0:00:03]} 28. Rxc6 {[%emt 0:00:02]} Rb2 {[%emt 0:00:09]} 29. Bc4 {[%emt 0:00:36]} Rdxd2 {[%emt 0:01:07]} 30. Nxd2 {[%emt 0:00:02]} Rxd2 {[%emt 0:00:02]} 31. Rc7 {[%emt 0:00:03]} Bg5 {[%emt 0:00:49]} 32. Rxf7 {[%emt 0:00:43]} Bxe3+ {[%emt 0:00:02]} 33. Kf1 {[%emt 0:00:01]} Rc2 {[%emt 0:00:52]} 34. Bd5 {[%emt 0:02:01]} Kh8 {[%emt 0:00:29]} 1-0

[Event "European Women Rapid-ch 2023"]
[Site "Monaco"]
[Date "2024.01.14"]
[Round "10.4"]
[White "Ushenina, Anna"]
[Black "Agrest, Inna"]
[Result "1-0"]
[ECO "D00"]
[WhiteElo "2415"]
[BlackElo "2287"]
[Annotator "RC"]
[PlyCount "59"]
[EventDate "2023.12.19"]
[EventType "swiss"]
[EventCountry "MNC"]
[SourceTitle "playchess.com"]
[Source "ChessBase"]
[SourceQuality "1"]
[TimeControl "900+10"]

1. d4 {[%emt 0:00:04]} Nf6 {[%emt 0:00:01]} 2. Nf3 {[%emt 0:00:02]} g6 {[%emt 0:00:01]} 3. Nc3 {[%emt 0:00:01]} d5 {[%emt 0:01:18]} 4. Bf4 {[%emt 0:00:02]} Bg7 {[%emt 0:00:04]} 5. Nb5 {[%emt 0:00:01]} Na6 {[%emt 0:00:02]} 6. e3 {[%emt 0:00:02]} O-O {[%emt 0:00:15]} 7. h3 {[%emt 0:00:02]} Ne4 {[%emt 0:00:44]} 8. Nd2 {[%emt 0:00:02]} c5 {[%emt 0:01:26]} 9. Nxe4 {[%emt 0:00:38]} dxe4 {[%emt 0:00:03]} 10. c3 {[%emt 0:00:42]} Bd7 {[%emt 0:03:10]} 11. a4 {[%emt 0:00:23]} cxd4 {[%emt 0:03:00]} 12. exd4 {[%emt 0:00:04]} Bc6 {[%emt 0:00:06]} 13. Bc4 {[%emt 0:02:44]} Bd5 {[%emt 0:00:41]} 14. Qb3 {[%emt 0:00:27]} Bxc4 {[%emt 0:00:46]} 15. Qxc4 {[%emt 0:00:01]} Rc8 {[%emt 0:00:30]} 16. Qe2 {[%emt 0:00:30]} e5 {[%emt 0:00:43]} 17. dxe5 {[%emt 0:01:32]} Nc5 {[%emt 0:00:12]} 18. O-O {[%emt 0:00:04]} Qd3 {[%emt 0:01:38]} 19. Rfe1 {[%emt 0:00:21]} Qxe2 {[%emt 0:01:16]} 20. Rxe2 {[%emt 0:00:02]} Nd3 {[%emt 0:00:02]} 21. Bg3 {[%emt 0:00:47]} Nxe5 {[%emt 0:01:01]} 22. Bxe5 {[%emt 0:01:00]} Bxe5 {[%emt 0:00:01]} 23. Rxe4 {[%emt 0:00:01]} Bf6 {[%emt 0:00:46]} 24. Nxa7 {[%emt 0:00:15]} Rcd8 {[%emt 0:00:43]} 25. Re2 {[%emt 0:00:29]} Rd5 {[%emt 0:00:05]} 26. Nb5 {[%emt 0:00:11]} Rfd8 {[%emt 0:00:15]} 27. Rae1 {[%emt 0:00:16]} Kg7 {[%emt 0:00:03]} 28. Nc7 {[%emt 0:00:10]} Rd2 {[%emt 0:00:21]} 29. Rxd2 {[%emt 0:00:07]} Rxd2 {[%emt 0:00:02]} 30. Ne8+ {[%emt 0:00:01]} 1-0

[Event "European Women Rapid-ch 2023"]
[Site "Monaco"]
[Date "2024.01.14"]
[Round "10.5"]
[White "Bensdorp-De Labaca, Marlies"]
[Black "Kulon, Klaudia"]
[Result "0-1"]
[ECO "E70"]
[WhiteElo "2237"]
[BlackElo "2323"]
[Annotator "ChessBase"]
[PlyCount "90"]
[EventDate "2023.12.19"]
[EventType "swiss"]
[EventCountry "MNC"]
[SourceTitle "playchess.com"]
[Source "ChessBase"]
[SourceQuality "1"]
[TimeControl "900+10"]

1. d4 {[%emt 0:00:02]} Nf6 {[%emt 0:00:01]} 2. c4 {[%emt 0:00:02]} g6 {[%emt 0:00:02]} 3. Nc3 {[%emt 0:00:01]} Bg7 {[%emt 0:00:01]} 4. e4 {[%emt 0:00:01]} d6 {[%emt 0:00:01]} 5. Bd3 {[%emt 0:00:02]} O-O {[%emt 0:00:03]} 6. Nge2 {[%emt 0:00:01]} e5 {[%emt 0:00:31]} 7. d5 {[%emt 0:00:02]} a5 {[%emt 0:00:01]} 8. O-O {[%emt 0:00:06]} Na6 {[%emt 0:00:03]} 9. b3 {[%emt 0:00:43]} c6 {[%emt 0:00:06]} 10. h3 {[%emt 0:00:42]} Nc5 {[%emt 0:00:38]} 11. Bc2 {[%emt 0:00:02]} cxd5 {[%emt 0:00:02]} 12. cxd5 {[%emt 0:00:08]} b5 {[%emt 0:00:20]} 13. a3 {[%emt 0:00:15]} Bd7 {[%emt 0:00:17]} 14. Be3 {[%emt 0:01:15]} b4 {[%emt 0:00:34]} 15. axb4 {[%emt 0:00:40]} axb4 {[%emt 0:00:02]} 16. Na2 {[%emt 0:02:26]} Qb6 {[%emt 0:01:43]} 17. f3 {[%emt 0:00:43]} Ra3 {[%emt 0:00:46]} 18. Qd2 {[%emt 0:01:10]} Rfa8 {[%emt 0:00:09]} 19. Nec1 {[%emt 0:00:14]} R8a6 {[%emt 0:03:25]} 20. Rf2 {[%emt 0:00:18]} Nh5 {[%emt 0:00:51]} 21. Bd3 {[%emt 0:01:18]} Ra8 {[%emt 0:00:05]} 22. Rb1 {[%emt 0:00:08]} Rb8 {[%emt 0:00:06]} 23. Ne2 {[%emt 0:01:05]} Nf4 {[%emt 0:03:37]} 24. Nac1 {[%emt 0:01:10]} Bh6 {[%emt 0:00:08]} 25. Kh2 {[%emt 0:00:44]} Nfxd3 {[%emt 0:00:29]} 26. Bxh6 {[%emt 0:00:06]} Nxf2 {[%emt 0:00:08]} 27. Be3 {[%emt 0:00:05]} Nfxe4 {[%emt 0:00:26]} 28. fxe4 {[%emt 0:00:03]} Nxe4 {[%emt 0:00:04]} 29. Qd3 {[%emt 0:00:55]} Nc5 {[%emt 0:00:05]} 30. Qc4 {[%emt 0:00:05]} Qd8 {[%emt 0:00:20]} 31. Ng3 {[%emt 0:00:17]} Ra5 {[%emt 0:00:58]} 32. Rb2 {[%emt 0:00:11]} f5 {[%emt 0:00:06]} 33. Bd2 {[%emt 0:00:17]} Rab5 {[%emt 0:01:24]} 34. Ra2 {[%emt 0:01:13]} R5b7 {[%emt 0:00:09]} 35. Nce2 {[%emt 0:01:13]} f4 {[%emt 0:00:03]} 36. Ne4 {[%emt 0:00:21]} Bb5 {[%emt 0:00:03]} 37. Qc2 {[%emt 0:00:40]} Bxe2 {[%emt 0:00:19]} 38. Nxc5 {[%emt 0:00:02]} dxc5 {[%emt 0:00:01]} 39. Qxc5 {[%emt 0:00:08]} Qh4 {[%emt 0:00:19]} 40. d6 {[%emt 0:00:11]} Qg3+ {[%emt 0:00:28]} 41. Kg1 {[%emt 0:00:19]} f3 {[%emt 0:00:17]} 42. Qf2 {[%emt 0:00:55]} Qxf2+ {[%emt 0:00:14]} 43. Kxf2 {[%emt 0:00:02]} fxg2 {[%emt 0:00:04]} 44. Kxg2 {[%emt 0:00:20]} Rd7 {[%emt 0:00:02]} 45. Bg5 {[%emt 0:00:06]} Bd1 {[%emt 0:00:06]} 0-1

[Event "European Women Rapid-ch 2023"]
[Site "Monaco"]
[Date "2024.01.14"]
[Round "10.6"]
[White "Zhukova, Natalia"]
[Black "Khotenashvili, Bella"]
[Result "0-1"]
[ECO "A40"]
[WhiteElo "2301"]
[BlackElo "2467"]
[Annotator "RC"]
[PlyCount "100"]
[EventDate "2023.12.19"]
[EventType "swiss"]
[EventCountry "MNC"]
[SourceTitle "playchess.com"]
[Source "ChessBase"]
[SourceQuality "1"]
[TimeControl "900+10"]

1. c4 {[%emt 0:00:10]} c5 {[%emt 0:00:10]} 2. Nf3 {[%emt 0:00:10]} g6 {[%emt 0:00:10]} 3. d4 {[%emt 0:00:10]} Bg7 {[%emt 0:00:10]} 4. e4 {[%emt 0:00:10]} d6 {[%emt 0:00:10]} 5. d5 {[%emt 0:00:10]} e6 {[%emt 0:00:10]} 6. Bd3 {[%emt 0:00:10]} Ne7 {[%emt 0:00:19]} 7. Nc3 {[%emt 0:00:39]} O-O {[%emt 0:00:22]} 8. h3 {[%emt 0:01:46]} h6 {[%emt 0:01:34]} 9. g4 {[%emt 0:03:37]} exd5 {[%emt 0:00:18]} 10. cxd5 {[%emt 0:00:02]} Na6 {[%emt 0:02:16]} 11. Rg1 {[%emt 0:03:59]} Nc7 {[%emt 0:00:30]} 12. Kf1 {[%emt 0:01:37]} Rb8 {[%emt 0:00:35]} 13. a4 {[%emt 0:00:11]} a6 {[%emt 0:00:02]} 14. a5 {[%emt 0:00:35]} b5 {[%emt 0:00:23]} 15. axb6 {[%emt 0:00:02]} Rxb6 {[%emt 0:00:01]} 16. Nd2 {[%emt 0:00:06]} Nb5 {[%emt 0:00:25]} 17. Nc4 {[%emt 0:00:14]} Rb8 {[%emt 0:00:11]} 18. Bf4 {[%emt 0:00:16]} g5 {[%emt 0:01:00]} 19. Bg3 {[%emt 0:00:18]} Ng6 {[%emt 0:03:16]} 20. Nxb5 {[%emt 0:00:01]} axb5 {[%emt 0:00:00]} 21. Nxd6 {[%emt 0:00:03]} c4 {[%emt 0:00:05]} 22. Nf5 {[%emt 0:03:18]} Bxf5 {[%emt 0:00:29]} 23. gxf5 {[%emt 0:00:03]} Ne5 {[%emt 0:02:06]} 24. Bc2 {[%emt 0:00:13]} Ra8 {[%emt 0:01:55]} 25. Kg2 {[%emt 0:00:17]} Rxa1 {[%emt 0:00:25]} 26. Qxa1 {[%emt 0:00:01]} Qb6 {[%emt 0:00:08]} 27. Rd1 {[%emt 0:00:41]} Rd8 {[%emt 0:00:13]} 28. Qa2 {[%emt 0:00:26]} Bf6 {[%emt 0:00:29]} 29. b3 {[%emt 0:00:12]} c3 {[%emt 0:00:10]} 30. Qa3 {[%emt 0:00:16]} b4 {[%emt 0:00:26]} 31. Qa4 {[%emt 0:00:03]} h5 {[%emt 0:01:03]} 32. Bxe5 {[%emt 0:00:22]} Bxe5 {[%emt 0:00:01]} 33. Qc6 {[%emt 0:00:01]} Qxc6 {[%emt 0:00:48]} 34. dxc6 {[%emt 0:00:01]} Rc8 {[%emt 0:00:01]} 35. Rd5 {[%emt 0:00:12]} f6 {[%emt 0:00:01]} 36. Rc5 {[%emt 0:00:19]} Kf7 {[%emt 0:00:20]} 37. Rc4 {[%emt 0:00:12]} Bd6 {[%emt 0:00:03]} 38. Bd1 {[%emt 0:00:12]} h4 {[%emt 0:00:07]} 39. Kf3 {[%emt 0:00:11]} Ke7 {[%emt 0:00:04]} 40. Ke3 {[%emt 0:00:10]} Kd8 {[%emt 0:00:03]} 41. Kd4 {[%emt 0:00:10]} Kc7 {[%emt 0:00:01]} 42. Kd5 {[%emt 0:00:01]} Re8 {[%emt 0:00:06]} 43. Bh5 {[%emt 0:00:21]} Re5+ {[%emt 0:00:03]} 44. Kd4 {[%emt 0:00:01]} Ra5 {[%emt 0:00:05]} 45. Kd3 {[%emt 0:00:07]} Ra2 {[%emt 0:00:05]} 46. e5 {[%emt 0:00:18]} Bxe5 {[%emt 0:00:17]} 47. Rxb4 {[%emt 0:00:06]} Rd2+ {[%emt 0:01:01]} 48. Ke3 {[%emt 0:00:02]} Bf4+ {[%emt 0:00:02]} 49. Kf3 {[%emt 0:00:06]} Rd6 {[%emt 0:00:16]} 50. Rc4 {[%emt 0:00:16]} Rxc6 {[%emt 0:00:01]} 0-1